bitfinex/quotes_ETHUSD_20250529
["timestamp","ask_amount","ask_price","bid_price","bid_amount"]
[1748527728673,1.6385,2646.3,2645.7,3.77962771]
[1748527728858,6.9035,2646.3,2645.8,9.90299629]
[1748527729059,6.9035,2646.3,2644.9,10.0]
[1748527729246,6.9035,2646.3,2645.3,3.7801922]
[1748527729600,10.68238163,2646.3,2644.9,8.0]
[1748527729731,10.68238163,2646.3,2644.8,16.02148095]
[1748527729732,1.11548281,2646.2,2644.8,4.24052049]
[1748527730054,1.5001,2646.0,2644.8,2.60222049]
[1748527730255,5.261,2645.9,2644.8,2.60222049]
[1748527730425,1.5089,2645.7,2644.8,0.6992242]
[1748527730629,3.7800437,2645.5,2644.8,0.6992242]
[1748527730889,1.5089,2645.3,2644.8,0.6992242]
[1748527731174,3.78086128,2644.9,2644.8,0.32710255]
[1748527731370,1.5089,2645.1,2644.8,0.32710255]
[1748527731371,5.3367454,2645.1,2644.8,0.32710255]
[1748527731572,5.03119405,2645.0,2644.8,0.32710255]
[1748527731769,1.6137,2644.9,2644.8,0.32710255]
[1748527732068,1.6137,2644.9,2644.5,17.63946281]
[1748527732069,4.33129017,2644.6,2644.5,17.63946281]
[1748527732276,11.19299017,2644.6,2644.5,17.63946281]
[1748527732425,7.4117,2644.6,2644.5,17.63946281]
[1748527732627,3.708153,2644.6,2644.5,17.63946281]
[1748527732822,1.25037454,2645.0,2644.5,17.63946281]
[1748527732823,1.6158,2645.0,2644.5,17.63946281]
[1748527733068,5.245,2644.9,2644.5,17.63946281]
[1748527733276,1.6158,2644.8,2644.5,17.63946281]
[1748527733479,5.252,2644.7,2644.5,17.63946281]
[1748527733678,5.93878,2644.7,2644.5,17.63946281]
[1748527733973,6.8997,2644.6,2644.5,17.63946281]
[1748527734274,6.9027,2644.6,2644.5,17.63946281]
[1748527734681,1.6377,2644.6,2644.5,17.63946281]
[1748527734976,7.4517,2644.6,2644.5,17.63946281]
[1748527735137,8.02397598,2644.6,2644.5,17.63946281]
[1748527735532,8.02097598,2644.6,2644.5,17.63946281]
[1748527735738,8.57097598,2644.6,2644.5,17.63946281]
[1748527735949,12.35226615,2644.6,2644.5,17.63946281]
[1748527736447,1.6377,2644.6,2644.5,17.63946281]
[1748527736647,6.8927,2644.6,2644.5,17.63946281]
[1748527736847,1.6377,2644.6,2644.5,17.63946281]
[1748527737436,6.8897,2644.6,2644.5,17.63946281]
[1748527737638,1.6377,2644.6,2644.5,17.63946281]
[1748527737895,1.6413,2645.5,2644.6,3.78129017]
[1748527738034,1.6413,2645.5,2644.5,23.18473052]
[1748527738035,0.31375196,2645.4,2644.5,19.40340909]
[1748527738237,0.31375196,2645.4,2644.7,3.78107363]
[1748527738465,0.31375196,2645.4,2644.8,0.37810736]
[1748527738877,1.6413,2645.5,2644.5,19.40340909]
[1748527739133,5.239,2645.4,2644.8,3.78097805]
[1748527739372,5.239,2645.4,2644.8,3.7808939]
[1748527739543,5.239,2645.4,2644.5,19.40340909]
[1748527739544,1.647,2646.1,2644.7,1.90539702]
[1748527739749,5.55175196,2646.0,2644.9,3.78078969]
[1748527739977,0.31375196,2645.9,2645.0,0.37807897]
[1748527740143,0.31375196,2645.9,2644.6,8.0]
[1748527740346,5.231,2645.8,2645.0,3.43549702]
[1748527740675,0.31375196,2645.9,2645.2,3.78032754]
[1748527740876,5.229,2645.7,2645.3,3.7802157]
[1748527741091,5.225,2645.7,2645.2,3.78041778]
[1748527741384,0.31375196,2645.9,2645.3,3.78027293]
[1748527741691,0.31375196,2645.9,2645.4,1.90539702]
[1748527741888,0.31375196,2645.9,2645.8,3.77957517]
[1748527742066,0.31375196,2645.9,2645.8,8.13050019]
[1748527742252,0.31375196,2645.9,2645.8,13.68497219]
[1748527742452,0.34252354,2646.5,2646.3,3.77873468]
[1748527742669,0.34252354,2646.5,2645.9,8.0]
[1748527742987,0.34252354,2646.5,2645.8,2.28332138]
[1748527742988,5.55252354,2646.5,2645.8,0.37792436]
[1748527743164,5.55252354,2646.5,2645.7,8.0]
[1748527743338,5.55252354,2646.5,2645.4,8.0]
[1748527743547,1.6641,2646.2,2644.5,19.16996281]
[1748527743885,4.32895828,2646.3,2644.5,19.54485983]
[1748527743886,1.6641,2646.0,2644.5,19.54485983]
[1748527744042,5.207,2645.9,2644.9,3.43589702]
[1748527744243,5.207,2645.8,2645.0,4.12430803]
[1748527744483,5.207,2645.8,2645.0,0.3435897]
[1748527744684,1.6641,2646.0,2645.1,3.78046041]
[1748527744893,1.6641,2646.0,2645.0,0.3435897]
[1748527744894,1.6641,2646.0,2645.3,1.90539702]
[1748527745095,5.198,2645.9,2645.3,1.90539702]
[1748527745301,5.198,2645.9,2645.2,3.78041278]
[1748527745498,5.194,2645.8,2645.0,0.3435897]
[1748527745672,0.04724753,2645.7,2644.9,1.5305]
[1748527746010,0.04724753,2645.7,2644.5,19.63863134]
[1748527746168,0.04724753,2645.7,2644.5,18.02393134]
[1748527746497,1.5385,2645.6,2644.5,18.02393134]
[1748527746703,1.9072635,2645.5,2644.5,18.02393134]
[1748527746884,1.9072635,2645.5,2644.5,17.63946281]
[1748527746885,1.5528,2644.7,2644.5,17.63946281]
[1748527747053,5.183,2644.6,2644.5,17.63946281]
[1748527747255,8.96429017,2644.6,2644.5,17.63946281]
[1748527747466,5.183,2644.6,2644.5,17.63946281]
[1748527747763,1.5528,2644.7,2644.5,17.63946281]
[1748527747955,8.95529017,2644.6,2644.5,17.63946281]
[1748527748190,5.174,2644.6,2644.5,17.63946281]
[1748527748700,5.168,2644.6,2644.5,17.63946281]
[1748527748993,1.5528,2644.7,2644.5,17.63946281]
[1748527749191,5.165,2644.6,2644.5,17.63946281]
[1748527749396,5.83678,2644.6,2644.5,17.63946281]
[1748527749794,0.67178,2644.6,2644.5,17.63946281]
[1748527749959,1.5528,2644.7,2644.5,17.63946281]
[1748527750159,0.19072635,2645.4,2644.5,17.63946281]
[1748527750160,1.6522,2645.3,2644.5,17.63946281]
[1748527750362,5.20626449,2645.2,2644.5,17.63946281]
[1748527750760,5.159,2645.2,2644.5,17.63946281]
[1748527751097,1.6522,2645.3,2644.5,17.63946281]
[1748527751403,0.19072635,2645.4,2644.6,1.556]
[1748527751622,5.152,2645.2,2644.6,1.556]
[1748527751822,5.152,2645.1,2644.6,1.556]
[1748527751980,1.5331,2645.7,2644.6,1.556]
[1748527751981,5.15,2645.0,2644.6,1.556]
[1748527752511,5.144,2644.9,2644.6,1.556]
[1748527752833,5.144,2644.9,2644.5,19.40340909]
[1748527752834,0.04726157,2644.8,2644.5,17.63946281]
[1748527753120,2.15862616,2644.8,2644.5,17.63946281]
[1748527753415,1.90539702,2646.3,2644.5,17.63946281]
[1748527753416,1.6395,2645.2,2644.5,17.63946281]
[1748527753572,1.6395,2645.6,2644.7,3.78110126]
[1748527753758,0.31375196,2645.5,2644.9,1.90539702]
[1748527754062,0.31375196,2645.5,2645.1,1.9031532]
[1748527754263,5.142,2645.4,2645.1,5.68363672]
[1748527754498,5.142,2645.4,2645.1,1.9031532]
[1748527754813,5.142,2645.4,2644.8,3.78100177]
[1748527755107,5.142,2645.4,2644.7,1.9031532]
[1748527755290,5.6562,2645.4,2644.7,1.9031532]
[1748527755491,5.6562,2645.4,2644.7,5.68429879]
[1748527755708,1.6395,2646.1,2644.9,10.0]
[1748527755992,1.6395,2646.1,2644.8,3.78100423]
[1748527755993,0.31375196,2646.0,2645.1,5.68372099]
[1748527756164,0.31375196,2646.0,2645.2,3.78034702]
[1748527756364,0.31375196,2646.0,2645.2,0.94642121]
[1748527756598,0.31375196,2646.0,2645.2,3.7803532]
[1748527756910,0.31375196,2646.0,2645.1,7.1849081]
[1748527757223,5.117,2645.9,2645.4,3.78001815]
[1748527757406,5.117,2645.9,2645.4,3.78007235]
[1748527757565,5.117,2645.9,2645.2,3.78039049]
[1748527757761,5.117,2645.9,2645.2,0.71847863]
[1748527757994,5.117,2645.9,2645.1,7.18490362]
[1748527758200,5.117,2645.9,2645.2,3.78040486]
[1748527758404,5.117,2645.9,2645.1,3.40439577]
[1748527758652,5.117,2645.9,2644.7,7.31477024]
[1748527758653,1.6184,2645.8,2644.7,7.31477024]
[1748527758907,1.6184,2645.8,2644.7,3.53369577]
[1748527759076,2.29194,2645.8,2644.8,1.15336958]
[1748527759278,3.77978721,2645.7,2644.5,17.63946281]
[1748527759592,0.55,2645.5,2644.5,17.63946281]
[1748527759799,5.097,2645.4,2644.5,17.63946281]
[1748527759995,5.58504986,2645.5,2644.5,17.63946281]
[1748527760294,5.81125499,2645.4,2644.5,17.63946281]
[1748527760493,8.87030015,2645.3,2644.5,17.63946281]
[1748527760673,0.71925499,2645.4,2644.5,17.63946281]
[1748527760674,3.78064458,2645.1,2644.5,17.63946281]
[1748527761012,1.6311,2644.9,2644.5,17.63946281]
[1748527761322,5.083,2644.8,2644.5,19.27606281]
[1748527761516,5.083,2644.8,2644.5,17.63946281]
[1748527762047,5.42859017,2644.6,2644.5,17.63946281]
[1748527762169,15.03499617,2644.6,2644.5,17.63946281]
[1748527762370,1.6473,2644.6,2644.5,17.63946281]
[1748527762801,6.7253,2644.6,2644.5,17.63946281]
[1748527763005,5.42859017,2644.6,2644.5,17.63946281]
[1748527763328,12.30959017,2644.6,2644.5,17.63946281]
[1748527763472,8.5283,2644.6,2644.5,17.63946281]
[1748527763664,12.30959017,2644.6,2644.5,17.63946281]
[1748527763908,7.03766451,2644.6,2644.5,17.63946281]
[1748527764106,10.13537434,2644.6,2644.5,17.63946281]
[1748527764291,13.91466451,2644.6,2644.5,17.63946281]
[1748527765370,10.06736451,2644.6,2644.5,17.63946281]
[1748527765571,17.21326451,2644.6,2644.5,17.63946281]
[1748527765765,11.78186218,2644.2,2643.3,3.52789256]
[1748527766072,3.78214826,2644.0,2643.3,3.52789256]
[1748527766371,11.94536794,2644.6,2643.3,3.52789256]
[1748527766568,0.4358601,2645.2,2643.4,1.6048]
[1748527766891,5.41075196,2645.1,2643.7,9.90319577]
[1748527767097,0.31375196,2645.0,2644.1,1.5883]
[1748527767268,0.31375196,2645.0,2644.0,1.5883]
[1748527767868,0.31375196,2645.0,2644.3,1.90319577]
[1748527768269,0.34854693,2645.7,2644.8,1.6393]
[1748527768470,5.102,2645.5,2644.9,1.16393]
[1748527768705,5.102,2645.5,2644.9,3.7808287]
[1748527768905,5.102,2645.5,2644.8,1.6393]
[1748527769119,5.102,2645.5,2644.8,5.42028547]
[1748527769422,5.102,2645.5,2644.4,1.5515]
[1748527769423,0.04725026,2645.4,2644.4,1.5515]
[1748527769621,0.04725026,2645.4,2644.4,1.89696958]
[1748527769622,5.098,2645.3,2644.4,1.89696958]
[1748527769836,3.77969445,2645.8,2644.4,1.89696958]
[1748527769837,0.04726223,2645.2,2644.4,1.89696958]
[1748527770130,5.095,2645.2,2644.4,5.67845613]
[1748527770315,5.095,2645.1,2644.4,1.89696958]
[1748527770643,5.095,2645.1,2644.5,0.38001654]
[1748527770786,5.095,2645.1,2644.1,11.78198699]
[1748527770787,5.095,2645.1,2644.1,1.5464]
[1748527771509,5.084,2645.0,2644.1,1.5464]
[1748527771696,1.805,2645.5,2644.6,3.78119264]
[1748527772010,5.082,2645.4,2644.2,11.78173266]
[1748527772210,5.082,2645.4,2644.3,1.71101144]
[1748527772507,5.10254245,2645.7,2644.3,1.71101144]
[1748527772722,5.077,2645.3,2644.3,1.71101144]
[1748527773307,3.82778623,2645.2,2644.1,1.5464]
[1748527773498,0.04726218,2645.2,2644.1,1.5464]
[1748527773746,0.04726647,2645.6,2644.1,5.32837925]
[1748527774045,5.068,2645.5,2644.2,13.78185186]
[1748527774219,8.84801247,2645.5,2644.2,10.0]
[1748527774413,5.068,2645.5,2644.3,1.53283509]
[1748527774638,0.04726217,2645.4,2644.2,10.0]
[1748527774978,5.057,2645.3,2644.1,5.32832857]
[1748527775154,5.054,2645.2,2644.1,11.5464]
[1748527775303,5.054,2645.2,2644.0,2.27373563]
[1748527775304,1.3228,2645.0,2644.0,0.37053986]
[1748527775512,0.04727469,2644.9,2643.7,1.6656]
[1748527775703,3.78132706,2644.6,2643.7,1.88348693]
[1748527775945,5.10359117,2645.0,2643.7,1.88348693]
[1748527776146,5.052,2644.9,2643.7,1.88348693]
[1748527776311,5.049,2644.8,2643.7,11.88348693]
[1748527776807,5.049,2644.8,2643.7,1.88348693]
[1748527777006,5.049,2644.8,2643.7,2.26676099]
[1748527777337,3.8281184,2645.0,2643.8,0.60493765]
[1748527777541,5.037,2644.9,2643.7,2.26676099]
[1748527777746,0.04727214,2644.8,2643.7,2.26676099]
[1748527778107,0.04727214,2644.8,2643.7,6.04928276]
[1748527778307,0.04727214,2644.8,2643.7,2.26676099]
[1748527778666,1.3228,2644.6,2643.7,0.38327406]
[1748527778890,1.3228,2644.6,2643.5,0.51326926]
[1748527779187,1.3228,2644.6,2643.5,4.29612251]
[1748527779581,3.78078968,2645.0,2643.5,0.51326926]
[1748527779582,0.04727496,2644.9,2643.5,0.51326926]
[1748527779893,1.3228,2645.0,2643.8,1.6574]
[1748527780193,5.028,2644.8,2643.8,2.57965763]
[1748527780375,0.04727208,2644.7,2643.8,1.6574]
[1748527780537,0.04727742,2644.7,2643.8,1.6574]
[1748527780741,5.02,2644.6,2643.8,5.43979978]
[1748527780980,5.02,2644.6,2643.5,0.37660319]
[1748527780981,3.82879271,2644.5,2643.5,0.37660319]
[1748527781184,0.04727381,2644.5,2643.4,1.6182]
[1748527781361,3.78087231,2644.9,2643.5,4.67571655]
[1748527781362,3.78093169,2644.9,2643.5,4.67571655]
[1748527781555,3.78093169,2644.9,2643.6,1.90521202]
[1748527781556,5.017,2644.8,2643.6,1.90521202]
[1748527781768,5.06427842,2644.8,2643.6,3.78262385]
[1748527781959,5.06427842,2644.8,2643.5,12.67571264]
[1748527782159,0.04727842,2644.8,2643.6,1.80768888]
[1748527782358,5.012,2644.7,2643.6,1.80768888]
[1748527782555,1.3228,2645.0,2643.6,1.80768888]
[1748527782884,1.749,2645.2,2644.0,1.90521202]
[1748527783185,5.007,2645.1,2644.2,8.0]
[1748527783380,5.004,2645.0,2644.2,9.51915106]
[1748527783680,1.749,2645.2,2644.2,9.51915106]
[1748527783837,5.04826644,2645.1,2644.1,1.5542]
[1748527784043,0.04726644,2645.1,2644.1,1.5542]
[1748527784281,1.3228,2645.4,2644.1,13.33612451]
[1748527784576,1.3228,2645.4,2644.1,1.5542]
[1748527784577,4.996,2645.0,2644.1,1.5542]
[1748527785241,3.82814512,2644.9,2644.1,1.5542]
[1748527785442,3.78100423,2644.8,2644.1,1.5542]
[1748527785654,3.78100423,2644.8,2643.4,10.2790558]
[1748527785655,3.78157754,2644.4,2643.7,1.5921]
[1748527785860,0.0472816,2644.3,2643.4,0.37384378]
[1748527786060,4.988,2644.2,2643.5,0.55373363]
[1748527786257,4.988,2644.2,2643.4,8.0]
[1748527786473,4.988,2644.2,2643.3,5.55071855]
[1748527786660,4.988,2644.2,2643.4,8.0]
[1748527787070,5.0352823,2644.2,2643.4,8.0]
[1748527787387,4.98,2644.1,2643.4,8.0]
[1748527787569,4.98,2644.1,2643.4,1.35507185]
[1748527787768,4.98,2644.1,2643.3,5.55071855]
[1748527787970,0.04728228,2644.0,2643.3,5.55071855]
[1748527788147,4.98,2644.1,2643.3,5.55071855]
[1748527788577,3.78239336,2643.9,2643.3,3.91511855]
[1748527788761,1.3228,2644.0,2643.3,3.91511855]
[1748527789088,3.78259671,2643.7,2643.3,3.91511855]
[1748527789288,1.3228,2644.0,2643.3,3.91511855]
[1748527789584,4.963,2643.9,2643.3,3.91511855]
[1748527789786,1.3228,2644.3,2643.3,3.91511855]
[1748527790003,1.3228,2644.6,2643.4,9.6344]
[1748527790289,5.00727561,2644.5,2643.4,9.6344]
[1748527790652,4.96,2644.5,2643.4,13.41731058]
[1748527791057,4.96,2644.5,2643.4,9.6344]
[1748527791388,1.3228,2645.0,2643.5,1.77266148]
[1748527791589,4.948,2644.9,2643.6,3.78262455]
[1748527791895,4.948,2644.9,2643.3,4.3091304]
[1748527791896,4.945,2644.8,2643.3,4.3091304]
[1748527792051,4.945,2644.8,2643.3,3.91511855]
[1748527792052,1.3228,2644.2,2643.3,3.91511855]
[1748527792382,3.78214843,2644.0,2643.3,3.91511855]
[1748527792550,0.04728828,2643.9,2643.3,3.91511855]
[1748527792746,3.78243731,2643.8,2643.3,3.91511855]
[1748527792949,3.78228746,2644.0,2643.3,3.91511855]
[1748527793187,0.04729028,2644.0,2643.3,3.91511855]
[1748527793487,1.3228,2644.2,2643.3,3.91511855]
[1748527793880,10.41807057,2644.1,2643.3,3.91511855]
[1748527794084,3.78224201,2644.0,2643.3,3.91511855]
[1748527794280,10.41808293,2644.1,2643.3,3.91511855]
[1748527794527,5.10470374,2644.2,2643.3,3.91511855]
[1748527794705,4.937,2644.0,2643.3,3.91511855]
[1748527794908,1.3228,2644.2,2643.3,3.91511855]
[1748527795250,1.696,2644.4,2643.4,1.6569]
[1748527795387,4.929,2644.3,2643.4,1.6569]
[1748527795586,3.0188,2644.6,2643.4,1.6569]
[1748527795786,1.696,2644.9,2643.5,1.90521202]
[1748527796083,1.696,2644.9,2643.7,3.78249684]
[1748527796284,1.3228,2645.4,2643.9,1.5267]
[1748527796498,6.622,2645.3,2643.9,3.43191202]
[1748527796898,1.696,2645.3,2644.3,3.78159572]
[1748527797101,4.922,2645.2,2644.1,5.41330751]
[1748527797425,4.92,2645.1,2644.2,1.34133075]
[1748527797789,4.92,2645.1,2644.3,3.78159672]
[1748527798018,4.915,2645.0,2644.4,3.78145744]
[1748527798188,4.915,2644.9,2644.3,3.78160405]
[1748527798388,4.915,2644.9,2644.2,5.12308948]
[1748527798389,1.3228,2645.8,2644.5,3.78134599]
[1748527798712,4.91,2645.7,2644.6,1.6108]
[1748527799023,8.6897896,2645.7,2644.6,1.6108]
[1748527799393,3.77986239,2645.6,2644.6,1.6108]
[1748527799628,3.77986239,2645.6,2644.2,13.12311903]
[1748527799921,6.79838586,2645.8,2644.0,1.5996]
[1748527799922,11.70386605,2645.5,2644.0,1.5996]
[1748527800226,11.70386605,2645.5,2643.9,3.78218166]
[1748527800227,1.3228,2645.5,2644.2,1.5298]
[1748527800432,0.02,2645.9,2644.7,1.90521202]
[1748527800628,4.907,2645.7,2645.0,8.0]
[1748527800827,4.907,2645.7,2644.9,8.0]
[1748527801125,4.907,2645.7,2644.8,5.31076931]
[1748527801126,4.907,2645.7,2645.0,0.90916306]
[1748527801424,4.907,2645.7,2644.8,9.5298]
[1748527801425,0.04725229,2645.6,2644.8,1.5298]
[1748527801635,3.78007392,2645.5,2644.2,1.6536]
[1748527801929,3.78036679,2645.3,2644.2,1.6536]
[1748527802093,0.04726407,2645.2,2644.2,10.06329902]
[1748527802296,3.7801472,2645.4,2644.2,2.06329902]
[1748527802524,3.78063528,2645.1,2643.8,2.10987142]
[1748527802700,3.78063528,2645.1,2643.6,1.90521202]
[1748527802701,4.94026961,2645.0,2643.6,1.90521202]
[1748527803038,4.94026961,2645.0,2642.8,3.78380314]
[1748527803039,3.78100423,2644.8,2642.8,10.0]
[1748527803262,0.04728305,2644.7,2642.7,0.07192419]
[1748527803534,3.78209961,2644.1,2642.7,3.85581298]
[1748527803689,8.66921855,2644.0,2642.7,0.07192419]
[1748527803915,8.66917059,2644.0,2642.7,0.07192419]
[1748527804115,4.887,2644.0,2642.7,0.07192419]
[1748527804313,0.04728868,2643.9,2642.7,0.07192419]
[1748527804620,3.82961761,2643.9,2642.7,0.07192419]
[1748527804853,3.78257745,2643.7,2642.7,0.07192419]
[1748527805074,3.78250321,2643.8,2642.7,0.07192419]
[1748527805572,3.78267977,2643.7,2642.7,1.66462419]
[1748527805862,3.7827347,2643.6,2642.7,1.66462419]
[1748527806159,6.583,2644.0,2643.3,3.52789256]
[1748527806381,0.55,2643.9,2643.3,3.52789256]
[1748527806531,3.78257744,2643.7,2643.3,3.52789256]
[1748527806731,5.28219082,2644.0,2643.3,3.52789256]
[1748527806968,10.29132234,2643.9,2643.3,3.52789256]
[1748527807168,4.865,2643.8,2643.3,3.52789256]
[1748527807468,1.5,2644.0,2643.3,3.52789256]
[1748527807667,1.5,2644.0,2643.4,1.90578926]
[1748527807886,4.862,2643.9,2643.4,1.90578926]
[1748527808472,4.862,2643.9,2643.4,1.553]
[1748527808978,5.28215783,2644.0,2643.4,1.553]
[1748527808979,1.5,2644.0,2643.4,1.553]
[1748527809150,1.5,2644.0,2643.5,3.7828414]
[1748527809346,1.5,2644.0,2643.4,1.553]
[1748527809549,1.5,2644.0,2643.7,1.5015]
[1748527809748,1.5,2644.0,2643.9,13.28379131]
[1748527809953,0.58117569,2645.1,2644.0,1.5015]
[1748527810268,0.58117569,2645.1,2644.9,1.5015]
[1748527810779,4.848,2645.5,2644.9,1.5015]
[1748527811076,4.844,2645.4,2644.9,1.5015]
[1748527811280,3.79947405,2645.9,2644.9,1.5015]
[1748527811789,4.841,2645.8,2644.9,1.5015]
[1748527812096,0.02,2645.9,2644.9,1.5015]
[1748527812097,4.838,2645.7,2644.9,1.5015]
[1748527812241,0.02,2645.9,2644.9,1.5015]
[1748527812242,0.02,2645.9,2645.8,1.6594]
[1748527812439,0.02,2645.9,2645.8,11.10399719]
[1748527812645,0.68410214,2646.5,2646.4,5.40191825]
[1748527812895,0.58402767,2647.7,2646.8,3.77814719]
[1748527813093,0.58402767,2647.7,2646.8,19.17310921]
[1748527813246,1.45280418,2648.4,2646.9,11.77800445]
[1748527813586,1.45280418,2648.4,2647.5,1.522]
[1748527813891,4.853,2648.3,2647.5,1.522]
[1748527814180,0.04720237,2648.2,2647.5,1.522]
[1748527814365,4.853,2648.3,2647.5,1.522]
[1748527814685,4.846,2648.2,2647.5,5.29914531]
[1748527814840,4.846,2648.2,2647.5,2.85191453]
[1748527815150,0.02,2648.9,2647.5,6.62903003]
[1748527815359,0.02,2648.9,2647.8,31.54160428]
[1748527815569,0.02,2648.9,2648.8,1.5042]
[1748527816450,0.43741444,2649.3,2649.2,3.77472444]
[1748527816789,0.43741444,2649.3,2649.2,12.15913552]
[1748527816952,0.43741444,2649.3,2649.2,9.5042]
[1748527817141,0.43741444,2649.3,2649.2,1.5042]
[1748527817866,0.43741444,2649.3,2649.2,13.27892444]
[1748527818193,0.43741444,2649.3,2649.2,15.72987344]
[1748527818480,0.43741444,2649.3,2649.2,11.572233]
[1748527818683,0.43741444,2649.3,2649.2,1.5042]
[1748527819035,0.43741444,2649.3,2649.2,12.95998396]
[1748527819342,0.43741444,2649.3,2649.2,21.2339124]
[1748527819567,0.43741444,2649.3,2649.2,10.95998396]
[1748527820064,0.43741444,2649.3,2649.2,9.5042]
[1748527820854,0.43741444,2649.3,2649.2,9.88708033]
[1748527821510,0.43741444,2649.3,2649.2,8.38288033]
[1748527822155,0.43741444,2649.3,2649.2,0.38288033]
[1748527822396,0.43741444,2649.3,2648.6,5.33253981]
[1748527822556,0.43741444,2649.3,2648.7,8.53325398]
[1748527822756,0.43741444,2649.3,2648.7,0.53325398]
[1748527822997,5.24341444,2649.3,2648.6,1.557]
[1748527823312,5.24041444,2649.3,2648.8,8.0]
[1748527823596,5.24041444,2649.3,2648.7,9.89997607]
[1748527823597,0.43741444,2649.3,2648.7,9.89997607]
[1748527823801,0.43741444,2649.3,2648.7,8.0]
[1748527824009,0.43741444,2649.3,2648.6,1.557]
[1748527825080,0.04718839,2649.2,2648.4,0.37411629]
[1748527825260,0.43741444,2649.3,2648.2,1.5674]
[1748527825599,4.791,2649.2,2648.2,3.52414]
[1748527825998,4.791,2649.2,2648.0,1.89997607]
[1748527826197,4.791,2649.2,2647.9,1.641]
[1748527826198,4.83818837,2649.2,2647.9,3.77647573]
[1748527826411,4.787,2649.1,2647.7,3.77673188]
[1748527826570,0.43741444,2649.3,2647.9,3.7765006]
[1748527826571,4.785,2649.0,2647.9,3.7765006]
[1748527826776,5.2635,2649.0,2648.0,0.37765006]
[1748527826973,0.43741444,2649.3,2648.1,2.223]
[1748527827177,0.43741444,2649.3,2648.3,10.0]
[1748527827178,4.781,2649.2,2648.3,10.0]
[1748527827378,4.78,2649.1,2648.4,3.77578412]
[1748527827698,4.78,2649.1,2648.2,10.0]
[1748527827898,4.78,2649.1,2648.1,5.67625044]
[1748527828101,4.78,2649.1,2648.2,1.60539005]
[1748527828270,4.78,2649.1,2647.6,10.38290616]
[1748527828476,3.77566078,2648.6,2647.6,0.38290616]
[1748527828791,5.40227036,2649.0,2647.1,0.02]
[1748527828792,0.04720454,2648.5,2647.1,11.79767425]
[1748527829100,3.77576952,2648.5,2647.1,1.5435]
[1748527829311,1.588,2648.7,2647.1,1.5435]
[1748527829476,1.588,2648.7,2647.1,5.32120026]
[1748527829675,1.58,2649.0,2647.7,8.0]
[1748527829877,4.768,2648.9,2648.0,8.0]
[1748527830088,0.43741444,2649.3,2648.0,8.0]
[1748527830089,0.43741444,2649.3,2648.2,3.77606401]
[1748527830304,4.768,2649.2,2648.3,1.5235]
[1748527830513,0.52054144,2649.1,2648.3,1.5235]
[1748527830812,5.28554144,2649.1,2648.3,1.5235]
[1748527831677,0.04719189,2649.0,2647.9,1.5021]
[1748527831872,5.28554144,2649.1,2647.9,1.5021]
[1748527832116,5.28554144,2649.1,2647.2,2.4320961]
[1748527832117,1.67689794,2649.0,2647.3,1.5021]
[1748527832274,1.67689794,2649.0,2647.3,1.74463621]
[1748527832275,3.77571687,2648.6,2647.3,1.74463621]
[1748527832476,1.64760789,2648.5,2647.3,1.74463621]
[1748527832725,3.77593923,2648.4,2647.1,0.39114211]
[1748527832875,1.6004,2648.0,2647.1,0.39114211]
[1748527833303,0.04721942,2647.9,2647.1,0.39114211]
[1748527833508,3.77672448,2647.8,2647.1,0.39114211]
[1748527833799,1.6004,2648.0,2647.1,0.39114211]
[1748527834001,2.13806501,2648.0,2647.1,0.39114211]
[1748527834316,4.748,2647.9,2647.1,0.39114211]
[1748527835176,1.6004,2648.0,2647.1,0.39114211]
[1748527835382,4.745,2648.0,2647.5,3.77702274]
[1748527835680,4.745,2648.0,2647.1,0.39114211]
[1748527836029,1.6581,2648.4,2647.4,3.77721255]
[1748527836241,1.588,2648.7,2647.6,3.77700558]
[1748527836518,1.98551148,2649.8,2647.8,22.262688]
[1748527836722,0.13268843,2649.3,2648.5,1.89997607]
[1748527836875,0.13268843,2649.3,2648.7,5.32495914]
[1748527837082,0.13268843,2649.3,2648.9,1.89997607]
[1748527837314,0.13268843,2649.3,2648.9,2.0887615]
[1748527837517,0.13268843,2649.3,2648.9,5.86378028]
[1748527837777,0.13268843,2649.3,2648.9,2.0887615]
[1748527838079,0.13268843,2649.3,2648.7,1.5496]
[1748527838281,0.13268843,2649.3,2648.3,5.32557863]
[1748527838508,0.13268843,2649.3,2648.6,3.7755114]
[1748527838824,0.13268843,2649.3,2648.6,0.1953198]
[1748527838992,0.13268843,2649.3,2648.9,3.77509119]
[1748527839323,0.13268843,2649.3,2648.7,3.77532978]
[1748527839620,0.13268843,2649.3,2648.4,8.0]
[1748527839789,4.748,2649.2,2648.3,5.32560586]
[1748527839995,4.748,2649.2,2648.5,3.77568591]
[1748527840303,0.13268843,2649.3,2648.6,10.0]
[1748527840504,0.13268843,2649.3,2648.8,3.77525269]
[1748527840905,0.13268843,2649.3,2648.8,3.77519007]
[1748527841080,4.87368843,2649.3,2648.8,3.77521336]
[1748527841281,4.87368843,2649.3,2648.4,0.19270605]
[1748527841483,4.87368843,2649.3,2647.9,1.5496]
[1748527841484,1.60908199,2649.2,2647.9,1.5496]
[1748527841691,6.326,2649.1,2647.9,1.5496]
[1748527841907,1.60908199,2649.2,2648.0,3.77633545]
[1748527841908,1.5619,2649.2,2648.0,3.77633545]
[1748527842120,1.5619,2649.2,2648.0,3.77641182]
[1748527842290,4.737,2649.1,2648.1,3.77629243]
[1748527842496,4.737,2649.1,2648.0,5.109013]
[1748527842497,4.737,2649.1,2648.0,9.33260118]
[1748527842825,3.1499,2649.2,2648.2,3.77604765]
[1748527843138,4.731,2649.1,2648.3,3.77593758]
[1748527843284,4.731,2649.1,2648.0,9.33260118]
[1748527843595,1.5619,2649.2,2648.1,1.10751578]
[1748527843921,1.5619,2649.2,2648.5,3.7755868]
[1748527844115,4.726,2649.2,2648.7,3.77541512]
[1748527844315,0.13268843,2649.3,2648.6,3.55637607]
[1748527844516,0.13268843,2649.3,2648.8,3.77529447]
[1748527844700,0.13268843,2649.3,2648.8,10.0]
[1748527845023,0.13268843,2649.3,2648.8,13.77528648]
[1748527845227,0.13268843,2649.3,2648.9,3.77505585]
[1748527845523,0.13268843,2649.3,2649.1,3.77484563]